[Event "CRO Team Cup 2018"]
[Site "Mali Losinj"]
[Date "2018.05.21"]
[Round "5.19"]
[White "Matanovic, Luka"]
[Black "Filipovic, Marko"]
[Result "1/2-1/2"]
[ECO "B22"]
[WhiteElo "2189"]
[BlackElo "2327"]
[Annotator "ChessBase"]
[PlyCount "97"]
[EventType "team-tourn"]
[EventCountry "CRO"]
[SourceTitle "playchess.com"]
[Source "ChessBase"]
[SourceQuality "1"]
[TimeControl "40/5400+30:1800+30"]

1. e4 {[%emt 0:07:30]} c5 {[%emt 0:01:00]} 2. Nf3 {[%emt 0:00:00]} e6 {[%emt 0:00:30]} 3. c3 {[%emt 0:02:00]} Nf6 {[%emt 0:00:30]} 4. e5 {[%emt 0:01:30]} Nd5 {[%emt 0:00:30]} 5. d4 {[%emt 0:00:30]} cxd4 {[%emt 0:00:30]} 6. cxd4 {[%emt 0:00:00]} b6 {[%emt 0:03:30]} 7. Nbd2 {[%emt 0:05:00]} Ba6 {[%emt 0:22:30]} 8. Bxa6 {[%emt 0:03:30]} Nxa6 {[%emt 0:00:30]} 9. Ne4 {[%emt 0:01:30]} Be7 {[%emt 0:08:30]} 10. O-O {[%emt 0:07:30]} O-O {[%emt 0:00:30]} 11. a3 {[%emt 0:03:30]} Nac7 {[%emt 0:13:30]} 12. Bg5 {[%emt 0:06:30]} h6 {[%emt 0:12:30]} 13. Bxe7 {[%emt 0:03:30]} Qxe7 {[%emt 0:00:30]} 14. Rc1 {[%emt 0:00:30]} Ne8 {[%emt 0:02:30]} 15. Qa4 {[%emt 0:03:30]} f5 {[%emt 0:02:30]} 16. exf6 {[%emt 0:12:30]} Nexf6 {[%emt 0:00:30]} 17. Nxf6+ {[%emt 0:00:30]} Rxf6 {[%emt 0:00:30]} 18. Ne5 {[%emt 0:00:30]} d6 {[%emt 0:02:30]} 19. Qc6 {[%emt 0:02:30]} Rd8 {[%emt 0:02:30]} 20. Nd3 {[%emt 0:02:30]} Rg6 {[%emt 0:07:27]} 21. g3 {[%emt 0:08:30]} Qf6 {[%emt 0:05:49]} 22. Qb7 {[%emt 0:07:30]} Qxd4 {[%emt 0:02:40]} 23. Rcd1 {[%emt 0:01:01]} Qa4 {[%emt 0:04:00]} 24. Rd2 {[%emt 0:03:51]} Rf6 {[%emt 0:00:48]} 25. Nb4 {[%emt 0:03:11]} Nxb4 {[%emt 0:01:11]} 26. axb4 {[%emt 0:00:43]} Rf7 {[%emt 0:00:52]} 27. Qe4 {[%emt 0:00:15]} Qd7 {[%emt 0:00:30]} 28. Re1 {[%emt 0:01:55]} Rf6 {[%emt 0:00:06]} 29. h4 {[%emt 0:01:05]} d5 {[%emt 0:00:45]} 30. Qd4 {[%emt 0:01:54]} Rc8 {[%emt 0:00:31]} 31. b3 {[%emt 0:01:26]} Qc6 {[%emt 0:00:49]} 32. Re3 {[%emt 0:00:56]} Qc1+ {[%emt 0:00:05]} 33. Kg2 {[%emt 0:01:58]} Rc2 {[%emt 0:01:09]} 34. Rde2 {[%emt 0:02:05]} Rxe2 {[%emt 0:00:52]} 35. Rxe2 {[%emt 0:00:32]} Qb1 {[%emt 0:00:30]} 36. Qc3 {[%emt 0:00:18]} Qd1 {[%emt 0:01:24]} 37. Ra2 {[%emt 0:01:19]} d4 {[%emt 0:02:50]} 38. Qc8+ {[%emt 0:01:15]} Kh7 {[%emt 0:00:07]} 39. Qb7 {[%emt 0:00:15]} Qe1 {[%emt 0:00:34]} 40. Qxa7 {[%emt 0:00:00]} Qxb4 {[%emt 0:01:31]} 41. Qb7 {[%emt 0:15:31]} Qxb3 {[%emt 0:02:30]} 42. Ra7 {[%emt 0:00:30]} Qd5+ {[%emt 0:08:30]} 43. Qxd5 {[%emt 0:00:30]} exd5 {[%emt 0:00:30]} 44. Rd7 {[%emt 0:00:00]} Rc6 {[%emt 0:02:14]} 45. Rxd5 {[%emt 0:01:00]} Rc4 {[%emt 0:00:23]} 46. Rb5 {[%emt 0:00:47]} Rc6 {[%emt 0:00:05]} 47. Rd5 {[%emt 0:00:25]} Rc4 {[%emt 0:00:12]} 48. Rb5 {[%emt 0:00:18]} Rc6 {[%emt 0:00:24]} 49. Rd5 {[%emt 0:00:30]} 1/2-1/2

[Event "CRO Team Cup 2018"]
[Site "Mali Losinj"]
[Date "2018.05.19"]
[Round "5.20"]
[White "Vargic, Drago"]
[Black "Matanovic, Pavo"]
[Result "1-0"]
[ECO "C55"]
[WhiteElo "2283"]
[BlackElo "1839"]
[Annotator "NA"]
[PlyCount "61"]
[EventType "team-tourn"]
[EventCountry "CRO"]
[SourceTitle "playchess.com"]
[Source "ChessBase"]
[SourceQuality "1"]
[TimeControl "40/5400+30:1800+30"]

1. e4 {[%emt 0:00:30]} e5 {[%emt 0:01:00]} 2. Nc3 {[%emt 0:01:30]} Nf6 {[%emt 0:02:30]} 3. Bc4 {[%emt 0:03:30]} Nc6 {[%emt 0:03:30]} 4. Nf3 {[%emt 0:02:30]} Nxe4 {[%emt 0:06:30]} 5. O-O {[%emt 0:13:30]} Nxc3 {[%emt 0:07:30]} 6. dxc3 {[%emt 0:00:30]} Be7 {[%emt 0:00:30]} 7. Qd5 {[%emt 0:02:30]} O-O {[%emt 0:01:30]} 8. Nxe5 {[%emt 0:00:30]} Nxe5 {[%emt 0:01:30]} 9. Qxe5 {[%emt 0:00:30]} d6 {[%emt 0:00:30]} 10. Qh5 {[%emt 0:00:00]} c6 {[%emt 0:10:30]} 11. Be3 {[%emt 0:07:00]} Bf6 {[%emt 0:04:30]} 12. f4 {[%emt 0:03:30]} g6 {[%emt 0:07:30]} 13. Qf3 {[%emt 0:00:30]} Bf5 {[%emt 0:01:30]} 14. g4 {[%emt 0:04:30]} Bxc2 {[%emt 0:11:30]} 15. Rf2 {[%emt 0:03:30]} d5 {[%emt 0:04:30]} 16. Bxd5 {[%emt 0:00:30]} cxd5 {[%emt 0:00:30]} 17. Rxc2 {[%emt 0:00:30]} Re8 {[%emt 0:01:30]} 18. Rd2 {[%emt 0:02:30]} Re4 {[%emt 0:00:30]} 19. g5 {[%emt 0:05:30]} Bg7 {[%emt 0:02:30]} 20. Rad1 {[%emt 0:03:30]} Qe8 {[%emt 0:03:30]} 21. Bf2 {[%emt 0:01:30]} Qa4 {[%emt 0:00:30]} 22. Rxd5 {[%emt 0:13:30]} Rxf4 {[%emt 0:06:30]} 23. Rd8+ {[%emt 0:03:30]} Rxd8 {[%emt 0:00:30]} 24. Rxd8+ {[%emt 0:00:30]} Bf8 {[%emt 0:00:30]} 25. Qd5 {[%emt 0:04:30]} Re4 {[%emt 0:13:54]} 26. b3 {[%emt 0:05:41]} Rg4+ {[%emt 0:01:58]} 27. Kf1 {[%emt 0:01:17]} Qxa2 {[%emt 0:00:51]} 28. Rxf8+ {[%emt 0:06:36]} Kxf8 {[%emt 0:02:14]} 29. Bc5+ {[%emt 0:00:37]} Kg8 {[%emt 0:01:19]} 30. Qd8+ {[%emt 0:00:11]} Kg7 {[%emt 0:00:01]} 31. Qf8# {[%emt 0:00:27]} 1-0

[Event "CRO Team Cup 2018"]
[Site "Mali Losinj"]
[Date "2018.05.19"]
[Round "5.23"]
[White "Blazeka, Matej"]
[Black "Golubovic, Boris"]
[Result "1/2-1/2"]
[ECO "B17"]
[WhiteElo "2312"]
[BlackElo "2386"]
[Annotator "NA"]
[PlyCount "51"]
[EventType "team-tourn"]
[EventCountry "CRO"]
[SourceTitle "playchess.com"]
[Source "ChessBase"]
[SourceQuality "1"]
[TimeControl "40/5400+30:1800+30"]

1. e4 {[%emt 0:00:30]} c6 {[%emt 0:04:00]} 2. d4 {[%emt 0:00:00]} d5 {[%emt 0:00:30]} 3. Nc3 {[%emt 0:00:00]} dxe4 {[%emt 0:00:30]} 4. Nxe4 {[%emt 0:00:00]} Nd7 {[%emt 0:02:30]} 5. Nf3 {[%emt 0:00:00]} Ngf6 {[%emt 0:00:00]} 6. Ng3 {[%emt 0:00:00]} g6 {[%emt 0:03:00]} 7. Bc4 {[%emt 0:06:00]} Bg7 {[%emt 0:00:30]} 8. O-O {[%emt 0:02:30]} O-O {[%emt 0:00:30]} 9. Re1 {[%emt 0:01:30]} Nb6 {[%emt 0:05:30]} 10. Bb3 {[%emt 0:01:30]} a5 {[%emt 0:03:30]} 11. a3 {[%emt 0:01:30]} a4 {[%emt 0:07:30]} 12. Ba2 {[%emt 0:00:30]} Bg4 {[%emt 0:00:30]} 13. c3 {[%emt 0:07:30]} e6 {[%emt 0:05:30]} 14. h3 {[%emt 0:05:30]} Bxf3 {[%emt 0:00:00]} 15. Qxf3 {[%emt 0:00:30]} Nbd7 {[%emt 0:02:00]} 16. Bf4 {[%emt 0:06:30]} Qb6 {[%emt 0:09:30]} 17. Re2 {[%emt 0:06:30]} c5 {[%emt 0:00:00]} 18. Rd1 {[%emt 0:14:30]} cxd4 {[%emt 0:20:00]} 19. Rxd4 {[%emt 0:05:30]} Nd5 {[%emt 0:06:30]} 20. Rd1 {[%emt 0:02:30]} Nxf4 {[%emt 0:04:30]} 21. Qxf4 {[%emt 0:00:30]} Nc5 {[%emt 0:00:30]} 22. Qb4 {[%emt 0:14:30]} Qc7 {[%emt 0:03:30]} 23. Ne4 {[%emt 0:07:10]} b6 {[%emt 0:05:24]} 24. Red2 {[%emt 0:03:44]} Rfd8 {[%emt 0:03:27]} 25. Nxc5 {[%emt 0:11:01]} Rxd2 {[%emt 0:02:33]} 26. Rxd2 {[%emt 0:00:03]} 1/2-1/2

[Event "CRO Team Cup 2018"]
[Site "Mali Losinj"]
[Date "2018.05.19"]
[Round "5.24"]
[White "Petrov, Jole"]
[Black "Brumen, Dinko"]
[Result "1/2-1/2"]
[ECO "E14"]
[WhiteElo "2408"]
[BlackElo "2319"]
[Annotator "NA"]
[PlyCount "77"]
[EventType "team-tourn"]
[EventCountry "CRO"]
[SourceTitle "playchess.com"]
[Source "ChessBase"]
[SourceQuality "1"]
[TimeControl "40/5400+30:1800+30"]

1. Nf3 {[%emt 0:00:30]} Nf6 {[%emt 0:01:00]} 2. d4 {[%emt 0:00:00]} e6 {[%emt 0:00:00]} 3. c4 {[%emt 0:02:00]} d5 {[%emt 0:00:00]} 4. e3 {[%emt 0:00:30]} Be7 {[%emt 0:00:30]} 5. b3 {[%emt 0:00:30]} O-O {[%emt 0:00:30]} 6. Bb2 {[%emt 0:00:30]} b6 {[%emt 0:01:30]} 7. Bd3 {[%emt 0:00:30]} Bb7 {[%emt 0:01:30]} 8. O-O {[%emt 0:00:30]} c5 {[%emt 0:04:30]} 9. Nbd2 {[%emt 0:01:30]} Ne4 {[%emt 0:04:30] E14: Queen's Indian: Classical Variation (4 e3)} (9... Nbd7 10. Qe2 Ne4 11. Rfd1 Qc7 12. cxd5 exd5 13. Rac1 Bf6 14. Nf1 Rac8 15. Ng3 g6 16. Bb5 Bc6 17. Bxc6 Qxc6 18. dxc5 Nxg3 19. hxg3 bxc5 20. Bxf6 Nxf6 {½-½ (57) Short,N (2664)-Ganguly,S (2603) Kolkata 2015}) 10. cxd5 $146 {[%emt 0:19:30]} ({Predecessor:} 10. Qc2 f5 11. Rad1 Nc6 12. a3 Rc8 13. Ne5 Nxe5 14. dxe5 Qe8 15. f3 Nxd2 16. Rxd2 Qh5 17. f4 {1-0 (44) Marusenko,P (2214)-Gamble,R (1914) Hastings 2017}) 10... exd5 {[%emt 0:00:30]} 11. dxc5 {[%emt 0:00:30]} bxc5 {[%emt 0:01:30]} 12. Qc2 {[%emt 0:05:30]} f5 {[%emt 0:01:30]} 13. Rfd1 {[%emt 0:00:30]} Qe8 {[%emt 0:04:30]} 14. Rac1 {[%emt 0:02:30]} Nc6 {[%emt 0:05:30]} 15. a3 {[%emt 0:07:30]} Rc8 {[%emt 0:06:30]} 16. Nf1 {[%emt 0:05:30]} Bf6 {[%emt 0:07:30]} 17. Ng3 {[%emt 0:02:30]} Ne5 {[%emt 0:02:30]} 18. Nxe5 {[%emt 0:10:30]} Bxe5 {[%emt 0:00:30]} 19. Bxe5 {[%emt 0:02:30]} Qxe5 {[%emt 0:01:30]} 20. f4 {[%emt 0:03:30]} Qe7 {[%emt 0:01:30]} 21. Bxe4 {[%emt 0:01:30]} fxe4 {[%emt 0:01:30]} 22. Qb2 {[%emt 0:06:30]} Rb8 {[%emt 0:36:03]} 23. Qc3 {[%emt 0:07:54]} Ba8 {[%emt 0:02:09]} 24. Rb1 $11 {[%emt 0:04:53]} Rb6 {[%emt 0:05:24]} 25. b4 {[%emt 0:02:12]} Rfb8 {[%emt 0:01:20]} 26. Rdc1 {[%emt 0:00:10]} d4 {[%emt 0:06:10]} (26... c4 $11) 27. Qxc5 {[%emt 0:00:35]} Qxc5 {[%emt 0:00:48]} 28. Rxc5 {[%emt 0:00:02]} d3 {[%emt 0:01:24]} 29. Rbc1 {[%emt 0:00:54]} Rd8 {[%emt 0:01:30]} 30. Nf1 {[%emt 0:00:28]} Ra6 {[%emt 0:00:36]} 31. Nd2 {[%emt 0:00:34]} Rxa3 {[%emt 0:00:55]} 32. Rc8 {[%emt 0:00:23]} Rxc8 {[%emt 0:00:01]} 33. Rxc8+ {[%emt 0:00:01]} Kf7 {[%emt 0:00:04]} 34. Rxa8 {[%emt 0:00:01]} Ra1+ {[%emt 0:00:08]} 35. Kf2 {[%emt 0:01:20]} Ra2 {[%emt 0:00:14]} 36. Ke1 {[%emt 0:10:12]} Ra1+ {[%emt 0:00:05]} 37. Kf2 {[%emt 0:00:10]} Ra2 {[%emt 0:00:05]} 38. Kg3 {[%emt 0:00:48]} Rxd2 {[%emt 0:00:30]} 39. Rxa7+ {[%emt 0:00:49]} 1/2-1/2

[Event "CRO Team Cup 2018"]
[Site "Mali Losinj"]
[Date "2018.05.20"]
[Round "6.12"]
[White "Bobanac, Miro"]
[Black "Petrov, Jole"]
[Result "1/2-1/2"]
[ECO "A12"]
[WhiteElo "2276"]
[BlackElo "2408"]
[Annotator "ChessBase"]
[PlyCount "127"]
[EventType "team-tourn"]
[EventCountry "CRO"]
[SourceTitle "playchess.com"]
[Source "ChessBase"]
[SourceQuality "1"]
[TimeControl "40/5400+30:1800+30"]

1. c4 {[%emt 0:00:30]} c6 {[%emt 0:01:00]} 2. Nf3 {[%emt 0:01:30]} d5 {[%emt 0:00:00]} 3. e3 {[%emt 0:00:30]} Nf6 {[%emt 0:00:00]} 4. b3 {[%emt 0:00:30]} Bf5 {[%emt 0:08:30]} 5. Bb2 {[%emt 0:01:30]} e6 {[%emt 0:00:30]} 6. Be2 {[%emt 0:01:30]} h6 {[%emt 0:00:30]} 7. O-O {[%emt 0:01:30]} Nbd7 {[%emt 0:01:30]} 8. d4 {[%emt 0:03:30]} Be7 {[%emt 0:03:30]} 9. Nbd2 {[%emt 0:01:30]} O-O {[%emt 0:04:30]} 10. Ne5 {[%emt 0:04:30]} Nxe5 {[%emt 0:06:30]} 11. dxe5 {[%emt 0:00:30]} Nd7 {[%emt 0:00:00]} 12. f4 {[%emt 0:07:30]} f6 {[%emt 0:04:00]} 13. Nf3 {[%emt 0:06:30]} fxe5 {[%emt 0:01:30]} 14. Nxe5 {[%emt 0:00:30]} Nxe5 {[%emt 0:05:30]} 15. Bxe5 {[%emt 0:00:30]} Bf6 {[%emt 0:00:30]} 16. Qd4 {[%emt 0:05:30]} Bxe5 {[%emt 0:00:30]} 17. Qxe5 {[%emt 0:00:30]} Qf6 {[%emt 0:01:30]} 18. Qxf6 {[%emt 0:01:30]} gxf6 {[%emt 0:01:30]} 19. Rfd1 {[%emt 0:05:30]} Rfd8 {[%emt 0:01:30]} 20. Bf3 {[%emt 0:01:30]} Kf7 {[%emt 0:04:30]} 21. Kf2 {[%emt 0:02:30]} Ke7 {[%emt 0:00:30]} 22. Ke2 {[%emt 0:06:30]} dxc4 {[%emt 0:20:30]} 23. bxc4 {[%emt 0:10:30]} e5 {[%emt 0:00:30]} 24. a3 {[%emt 0:07:30]} e4 {[%emt 0:06:30]} 25. Bh5 {[%emt 0:00:00]} Be6 {[%emt 0:00:00]} 26. c5 {[%emt 0:03:00]} b6 {[%emt 0:01:00]} 27. Rxd8 {[%emt 0:05:30]} Rxd8 {[%emt 0:00:30]} 28. Rd1 {[%emt 0:00:30]} Rg8 {[%emt 0:07:30]} 29. g3 {[%emt 0:01:30]} bxc5 {[%emt 0:00:30]} 30. Rb1 {[%emt 0:02:38]} Bc4+ {[%emt 0:09:34]} 31. Ke1 {[%emt 0:00:41]} Ba6 {[%emt 0:00:54]} 32. Be2 {[%emt 0:04:23]} Bxe2 {[%emt 0:02:27]} 33. Rb7+ {[%emt 0:00:27]} Ke6 {[%emt 0:00:23]} 34. Kxe2 {[%emt 0:01:46]} f5 {[%emt 0:01:07]} 35. Rh7 {[%emt 0:00:02]} Rb8 {[%emt 0:00:56]} 36. Rxh6+ {[%emt 0:01:39]} Kd5 {[%emt 0:00:17]} 37. h3 {[%emt 0:07:20]} Rb2+ {[%emt 0:00:44]} 38. Kd1 {[%emt 0:00:01]} Kc4 {[%emt 0:02:11]} 39. g4 {[%emt 0:02:05]} Kd3 {[%emt 0:00:58]} 40. Kc1 {[%emt 0:00:00]} Rc2+ {[%emt 0:00:59]} 41. Kb1 {[%emt 0:01:58]} Rf2 {[%emt 0:04:30]} 42. gxf5 {[%emt 0:01:30]} Kxe3 {[%emt 0:00:30]} 43. Rxc6 {[%emt 0:00:30]} Rxf4 {[%emt 0:03:30]} 44. Rxc5 {[%emt 0:01:30]} Kf3 {[%emt 0:00:30]} 45. Kc1 {[%emt 0:02:30]} e3 {[%emt 0:00:30]} 46. Re5 {[%emt 0:06:30]} e2 {[%emt 0:01:30]} 47. Kd2 {[%emt 0:00:30]} Rd4+ {[%emt 0:00:30]} 48. Kc3 {[%emt 0:00:30]} Rd1 {[%emt 0:01:30]} 49. f6 {[%emt 0:00:30]} e1=Q+ {[%emt 0:00:00]} 50. Rxe1 {[%emt 0:00:00]} Rxe1 {[%emt 0:00:00]} 51. f7 {[%emt 0:00:00]} Rc1+ {[%emt 0:00:30]} 52. Kd4 {[%emt 0:00:30]} Rc8 {[%emt 0:00:00]} 53. Ke5 {[%emt 0:00:30]} Kg3 {[%emt 0:01:00]} 54. Ke6 {[%emt 0:01:30]} Kxh3 {[%emt 0:00:00]} 55. Ke7 {[%emt 0:00:30]} Kg4 {[%emt 0:01:00]} 56. f8=Q {[%emt 0:01:30]} Rxf8 {[%emt 0:00:30]} 57. Kxf8 {[%emt 0:00:30]} Kf5 {[%emt 0:00:00]} 58. Ke7 {[%emt 0:01:30]} Ke5 {[%emt 0:00:00]} 59. Kd7 {[%emt 0:01:30]} Kd5 {[%emt 0:00:00]} 60. Kc7 {[%emt 0:00:30]} Kc5 {[%emt 0:00:00]} 61. Kb7 {[%emt 0:00:30]} Kc4 {[%emt 0:00:30]} 62. Kc7 {[%emt 0:00:30]} a5 {[%emt 0:00:30]} 63. Kb7 {[%emt 0:00:30]} a4 {[%emt 0:00:30]} 64. Ka6 {[%emt 0:00:00]} 1/2-1/2

[Event "CRO Team Cup 2018"]
[Site "Mali Losinj"]
[Date "2018.05.20"]
[Round "6.15"]
[White "Djurovic, Goran"]
[Black "Trbojevic, Mladen"]
[Result "1-0"]
[ECO "A00"]
[WhiteElo "2394"]
[BlackElo "2343"]
[Annotator "NA"]
[PlyCount "119"]
[EventType "team-tourn"]
[EventCountry "CRO"]
[SourceTitle "playchess.com"]
[Source "ChessBase"]
[SourceQuality "1"]
[TimeControl "40/5400+30:1800+30"]

1. g3 {[%emt 0:04:30]} Nf6 {[%emt 0:01:00]} 2. Bg2 {[%emt 0:00:30]} d5 {[%emt 0:00:30]} 3. d3 {[%emt 0:00:30]} e5 {[%emt 0:02:30]} 4. Nf3 {[%emt 0:00:30]} Bd6 {[%emt 0:02:30]} 5. O-O {[%emt 0:00:30]} O-O {[%emt 0:00:30]} 6. c4 {[%emt 0:00:30]} dxc4 {[%emt 0:00:30] A00: Irregular Openings} (6... c6 7. Bg5 dxc4 8. dxc4 h6 9. Bc1 Qe7 10. Nc3 Rd8 11. Qc2 e4 12. Nd4 Bxg3 13. hxg3 Rxd4 14. Be3 Rxc4 {0-1 (60) Fridman,D (2633)-Fedorchuk,S (2648) Katowice 2017}) 7. dxc4 {[%emt 0:00:00]} c6 {[%emt 0:00:30]} 8. Nc3 {[%emt 0:04:00]} Qc7 {[%emt 0:14:30]} 9. Qc2 {[%emt 0:02:30]} h6 {[%emt 0:06:30]} 10. a3 $146 {[%emt 0:07:30]} ({Predecessor:} 10. Nh4 Re8 11. h3 {0-1 (28) Wajih,N (2242)-Priyadharshan,K (2362) New Delhi 2010}) 10... a5 {[%emt 0:08:30]} 11. Na4 {[%emt 0:01:30]} Na6 {[%emt 0:16:30]} 12. c5 {[%emt 0:02:30]} Be7 {[%emt 0:00:30]} 13. Rb1 {[%emt 0:00:30]} Bg4 {[%emt 0:05:30]} 14. h3 {[%emt 0:07:30]} Be6 {[%emt 0:10:30]} 15. e4 {[%emt 0:02:30]} Nd7 {[%emt 0:00:30]} 16. Be3 {[%emt 0:00:30]} Rad8 {[%emt 0:02:30]} 17. b4 {[%emt 0:02:30]} axb4 {[%emt 0:00:30]} 18. axb4 {[%emt 0:00:30]} Kh8 {[%emt 0:04:30]} 19. Nd2 {[%emt 0:01:30]} f5 {[%emt 0:00:30]} 20. exf5 {[%emt 0:00:30]} Bxf5 {[%emt 0:00:00]} 21. Ne4 {[%emt 0:07:30]} Nf6 {[%emt 0:00:00]} 22. g4 {[%emt 0:01:30]} Bh7 {[%emt 0:01:30]} 23. b5 {[%emt 0:01:30]} cxb5 {[%emt 0:01:33]} 24. Rxb5 {[%emt 0:00:30]} Qc6 {[%emt 0:02:25]} 25. Nac3 {[%emt 0:00:00]} Nxc5 {[%emt 0:06:10]} 26. Nxc5 {[%emt 0:07:00]} Bxc2 {[%emt 0:03:36]} 27. Bxc6 {[%emt 0:00:30]} bxc6 {[%emt 0:00:01]} 28. Rb6 {[%emt 0:09:30]} Rc8 {[%emt 0:00:46]} 29. Rb2 {[%emt 0:01:30]} Bg6 {[%emt 0:00:32]} 30. Rd1 {[%emt 0:02:30]} Rfd8 {[%emt 0:01:13]} 31. Rxd8+ {[%emt 0:00:30]} Rxd8 {[%emt 0:00:18]} 32. Rb7 {[%emt 0:01:30]} Bxc5 {[%emt 0:05:19]} 33. Bxc5 {[%emt 0:00:30]} Rd3 {[%emt 0:00:28]} 34. Ne2 {[%emt 0:03:30]} Kg8 {[%emt 0:03:26]} 35. Rb8+ {[%emt 0:02:30]} Kf7 {[%emt 0:00:41]} 36. Rb7+ {[%emt 0:01:30]} Nd7 {[%emt 0:00:06]} 37. Nd4 {[%emt 0:03:30]} Rd1+ {[%emt 0:01:17]} 38. Kh2 {[%emt 0:01:30]} Ke8 {[%emt 0:00:06]} 39. Ne6 {[%emt 0:01:30]} Nxc5 {[%emt 0:00:16]} 40. Nxc5 {[%emt 0:00:00]} Bf7 {[%emt 0:00:47]} 41. Rc7 {[%emt 0:02:00]} g5 {[%emt 0:11:30]} 42. Rc8+ {[%emt 0:01:30]} Ke7 {[%emt 0:00:44]} 43. Rc7+ {[%emt 0:00:00]} Kf8 {[%emt 0:07:41]} 44. Nd7+ {[%emt 0:02:00]} Ke8 {[%emt 0:01:11]} 45. Nf6+ {[%emt 0:01:30]} Kf8 {[%emt 0:00:10]} 46. Rxc6 {[%emt 0:05:30]} Ke7 {[%emt 0:00:35]} 47. Rb6 {[%emt 0:01:30]} Re1 {[%emt 0:04:55]} 48. f3 {[%emt 0:01:30]} Re3 {[%emt 0:00:43]} 49. Kg2 {[%emt 0:00:30]} Re2+ {[%emt 0:01:22]} 50. Kg1 {[%emt 0:03:30]} Re3 {[%emt 0:01:17]} 51. Ne4 {[%emt 0:05:30]} Rxf3 {[%emt 0:02:07]} 52. Rxh6 {[%emt 0:00:00]} Bd5 {[%emt 0:00:40]} 53. Rh7+ {[%emt 0:04:00]} Kf8 {[%emt 0:00:50]} (53... Kd8 $11 54. Nxg5 Ra3) 54. Nxg5 {[%emt 0:02:30]} Rg3+ {[%emt 0:00:53]} 55. Kf2 {[%emt 0:01:30]} Rg2+ {[%emt 0:00:02]} 56. Kf1 {[%emt 0:01:30]} Rd2 $14 {[%emt 0:01:17]} 57. Rc7 {[%emt 0:00:30]} e4 {[%emt 0:01:24]} 58. Nh7+ {[%emt 0:02:30]} Ke8 {[%emt 0:00:01]} 59. Nf6+ {[%emt 0:00:30]} Kd8 {[%emt 0:00:01]} 60. Rd7+ {[%emt 0:00:00]} 1-0

[Event "CRO Team Cup 2018"]
[Site "Mali Losinj"]
[Date "2018.05.20"]
[Round "6.16"]
[White "Horvat, David"]
[Black "Bukal, Vladimir Jr"]
[Result "1/2-1/2"]
[ECO "C19"]
[WhiteElo "2191"]
[BlackElo "2388"]
[Annotator "NA"]
[PlyCount "41"]
[EventType "team-tourn"]
[EventCountry "CRO"]
[SourceTitle "playchess.com"]
[Source "ChessBase"]
[SourceQuality "1"]
[TimeControl "40/5400+30:1800+30"]

1. e4 {[%emt 0:00:30]} e6 {[%emt 0:02:00]} 2. d4 {[%emt 0:00:00]} d5 {[%emt 0:00:30]} 3. Nc3 {[%emt 0:00:00]} Bb4 {[%emt 0:00:30]} 4. e5 {[%emt 0:00:30]} Ne7 {[%emt 0:01:30]} 5. a3 {[%emt 0:00:30]} Bxc3+ {[%emt 0:00:30]} 6. bxc3 {[%emt 0:00:30]} c5 {[%emt 0:00:00]} 7. Nf3 {[%emt 0:00:00]} Qc7 {[%emt 0:03:00]} 8. Bf4 {[%emt 0:02:00]} b6 {[%emt 0:02:30]} 9. Bb5+ {[%emt 0:00:30]} Bd7 {[%emt 0:00:30]} 10. Bd3 {[%emt 0:00:00]} c4 {[%emt 0:03:30]} 11. Be2 {[%emt 0:03:00]} Ba4 {[%emt 0:00:30]} 12. h4 {[%emt 0:00:00]} h6 {[%emt 0:02:30]} 13. h5 {[%emt 0:00:00]} Nbc6 {[%emt 0:07:30]} 14. Nd2 {[%emt 0:07:30]} O-O-O {[%emt 0:05:30]} 15. Bg4 {[%emt 0:00:30]} Qd7 {[%emt 0:02:30]} 16. Nf1 $11 {[%emt 0:07:30]} Kb7 {[%emt 0:02:30]} 17. Ne3 {[%emt 0:05:30]} Qe8 {[%emt 0:01:30]} 18. Bg3 {[%emt 0:01:30]} Qg8 {[%emt 0:07:30]} 19. Bh4 {[%emt 0:01:30]} Rf8 {[%emt 0:02:30]} 20. f4 {[%emt 0:10:30]} f6 {[%emt 0:01:30]} 21. O-O {[%emt 0:00:30]} 1/2-1/2

[Event "CRO Team Cup 2018"]
[Site "Mali Losinj"]
[Date "2018.05.20"]
[Round "6.19"]
[White "Filipovic, Marko"]
[Black "Susnjar, Miroslav"]
[Result "*"]
[ECO "A65"]
[WhiteElo "2327"]
[BlackElo "2154"]
[Annotator "NA"]
[PlyCount "90"]
[EventType "team-tourn"]
[EventCountry "CRO"]
[SourceTitle "playchess.com"]
[Source "ChessBase"]
[SourceQuality "1"]
[TimeControl "40/5400+30:1800+30"]

1. d4 {[%emt 0:00:30]} Nf6 {[%emt 0:01:00]} 2. c4 {[%emt 0:00:00]} c5 {[%emt 0:00:00]} 3. d5 {[%emt 0:00:00]} d6 {[%emt 0:00:00]} 4. Nc3 {[%emt 0:00:30]} g6 {[%emt 0:00:30]} 5. e4 {[%emt 0:00:30]} Bg7 {[%emt 0:00:00]} 6. f3 {[%emt 0:00:00]} O-O {[%emt 0:01:00]} 7. Bg5 {[%emt 0:01:00]} h6 {[%emt 0:01:30]} 8. Be3 {[%emt 0:00:00]} e6 {[%emt 0:06:30]} 9. Qd2 {[%emt 0:01:00]} exd5 {[%emt 0:00:30]} 10. cxd5 {[%emt 0:00:30]} h5 {[%emt 0:18:30] LiveBook: 126 Games} 11. Bh6 {[%emt 0:17:30] A65: Modern Benoni: 6 e4} (11. a4 a6 12. a5 b5 13. axb6 Qxb6 14. Bd3 Re8 15. Nge2 Nbd7 16. O-O Qb7 17. Ra5 Ne5 18. Rfa1 Nxd3 19. Qxd3 {0-1 (32) Javanbakht,N (2436)-Firouzja,A (2558) Bushehr 2018}) 11... Nbd7 {[%emt 0:01:30]} 12. Nh3 $146 {[%emt 0:03:30]} ({Predecessor:} 12. Bxg7 Kxg7 13. Nh3 a6 14. a4 Re8 15. Be2 Rb8 16. Nf2 Ne5 17. O-O Nh7 18. Rfb1 g5 {½-½ (50) Panteleev,D-Marholev,D (2270) Sofia 1992}) 12... Ne5 {[%emt 0:02:30]} (12... Bxh6 $14 13. Qxh6 Nh7) 13. Nf2 {[%emt 0:01:30]} a6 {[%emt 0:01:30]} 14. a4 {[%emt 0:01:30]} Qa5 {[%emt 0:02:30]} 15. Bxg7 {[%emt 0:07:30]} Kxg7 {[%emt 0:00:00]} 16. Ra3 {[%emt 0:01:30]} Qd8 {[%emt 0:12:00]} (16... Qb4 $11 {keeps the balance.}) 17. Be2 {[%emt 0:01:30]} Rb8 {[%emt 0:01:30]} 18. O-O {[%emt 0:00:30]} Qe7 {[%emt 0:02:30]} 19. h3 {[%emt 0:02:30]} Re8 {[%emt 0:02:30]} 20. Nfd1 {[%emt 0:16:30]} Ned7 {[%emt 0:01:30]} 21. Ne3 {[%emt 0:02:30]} b6 {[%emt 0:03:30]} 22. Rb1 {[%emt 0:02:30]} Ne5 {[%emt 0:04:30]} 23. b4 {[%emt 0:03:30]} Qc7 {[%emt 0:07:30]} 24. Rab3 {[%emt 0:04:30]} c4 {[%emt 0:07:30]} 25. Ra3 {[%emt 0:00:30]} b5 {[%emt 0:00:30]} 26. axb5 {[%emt 0:00:30]} axb5 {[%emt 0:00:00]} 27. Ra5 {[%emt 0:00:30]} Bd7 {[%emt 0:01:00]} 28. f4 {[%emt 0:07:30]} Nd3 {[%emt 0:00:30]} 29. Bxd3 {[%emt 0:00:00]} cxd3 {[%emt 0:00:30]} 30. Qxd3 {[%emt 0:01:00]} Qb6 {[%emt 0:00:30]} 31. Re1 {[%emt 0:05:30]} Re7 {[%emt 0:02:30]} 32. Kh2 {[%emt 0:01:30]} Rbe8 {[%emt 0:00:30]} 33. Ned1 {[%emt 0:09:25]} Bf5 {[%emt 0:00:30]} 34. Rxb5 {[%emt 0:04:43]} Qa7 {[%emt 0:05:40]} 35. Ra5 {[%emt 0:04:07]} Qb6 {[%emt 0:00:09]} 36. Rb5 {[%emt 0:01:15]} Qa7 {[%emt 0:00:07]} 37. Qe3 {[%emt 0:00:10]} Qxe3 {[%emt 0:03:28]} 38. Rxe3 {[%emt 0:00:43]} Bxe4 {[%emt 0:00:51]} 39. Rb6 {[%emt 0:02:09]} Bxd5 {[%emt 0:04:04]} 40. Rxe7 {[%emt 0:00:55]} Rxe7 {[%emt 0:00:14]} 41. Rxd6 {[%emt 0:00:57]} Bb7 {[%emt 0:14:30]} 42. Rd4 {[%emt 0:02:30]} h4 {[%emt 0:02:30]} 43. f5 {[%emt 0:07:30]} g5 {[%emt 0:00:30]} 44. Nf2 $11 {[%emt 0:13:37]} Re5 {[%emt 0:06:00]} 45. Ng4 {[%emt 0:00:30]} Rxf5 {[%emt 0:00:30]} *